[Event "Titled Tuesday Blitz May 31 Early 2022"]
[White "Kim, Sergey"]
[Black "Urazayev, Arystanbek"]
[WhiteFideId "13700570"]
[BlackFideId "13709810"]
[WhiteElo "2584"]
[BlackElo "2422"]
[Result "0-1"]
[Round "06"]
[TimeControl "180+1"]
[Date "2022.06.01"]
[WhiteClock "0:00:03"]
[BlackClock "0:00:03"]

1. d4 {[%clk 0:03:00]}  Nf6 {[%clk 0:02:59]} 2. c4 {[%clk 0:03:00]}  c5 {[%clk 0:03:00]} 3. d5 {[%clk 0:03:00]}  g6 {[%clk 0:03:00]} 4. Nc3 {[%clk 0:02:59]}  Bg7 {[%clk 0:03:01]} 5. e4 {[%clk 0:02:59]}  d6 {[%clk 0:03:02]} 6. Nge2 {[%clk 0:02:59]}  O-O {[%clk 0:03:01]} 7. Ng3 {[%clk 0:02:59]}  e6 {[%clk 0:03:01]} 8. Be2 {[%clk 0:02:59]}  exd5 {[%clk 0:03:01]} 9. cxd5 {[%clk 0:03:00]}  a6 {[%clk 0:03:01]} 10. a4 {[%clk 0:02:58]}  Re8 {[%clk 0:03:00]} 11. O-O {[%clk 0:02:58]}  Nbd7 {[%clk 0:03:00]} 12. Bf4 {[%clk 0:02:58]}  Ne5 {[%clk 0:02:59]} 13. Qd2 {[%clk 0:02:58]}  h5 {[%clk 0:02:58]} 14. Bg5 {[%clk 0:02:55]}  Qa5 {[%clk 0:02:55]} 15. f4 {[%clk 0:02:52]}  Ned7 {[%clk 0:02:54]} 16. e5 {[%clk 0:02:48]}  dxe5 {[%clk 0:02:46]} 17. f5 {[%clk 0:02:48]}  c4 {[%clk 0:02:33]} 18. Bxf6 {[%clk 0:02:34]}  Nxf6 {[%clk 0:02:31]} 19. fxg6 {[%clk 0:02:35]}  fxg6 {[%clk 0:02:31]} 20. Qg5 {[%clk 0:02:34]}  Qb6+ {[%clk 0:02:26]} 21. Kh1 {[%clk 0:02:33]}  Nh7 {[%clk 0:02:26]} 22. Qh4 {[%clk 0:02:27]}  Bf6 {[%clk 0:02:20]} 23. Qxc4 {[%clk 0:02:25]}  Bd7 {[%clk 0:02:12]} 24. Nge4 {[%clk 0:01:33]}  Bg7 {[%clk 0:02:11]} 25. a5 {[%clk 0:01:15]}  Qd4 {[%clk 0:02:11]} 26. Qc7 {[%clk 0:01:14]}  Bf5 {[%clk 0:02:05]} 27. Nd6 {[%clk 0:01:09]}  Rf8 {[%clk 0:01:55]} 28. Nxf5 {[%clk 0:01:08]}  gxf5 {[%clk 0:01:54]} 29. Bxh5 {[%clk 0:01:07]}  e4 {[%clk 0:01:36]} 30. Rad1 {[%clk 0:01:02]}  Qe5 {[%clk 0:01:35]} 31. d6 {[%clk 0:00:53]}  Nf6 {[%clk 0:01:35]} 32. Be2 {[%clk 0:00:51]}  Rfd8 {[%clk 0:01:16]} 33. Qxb7 {[%clk 0:00:44]}  Rab8 {[%clk 0:01:13]} 34. Qc7 {[%clk 0:00:42]}  Kh8 {[%clk 0:01:01]} 35. Qe7 {[%clk 0:00:23]}  Qxa5 {[%clk 0:00:34]} 36. d7 {[%clk 0:00:19]}  Qb4 {[%clk 0:00:13]} 37. Qf7 {[%clk 0:00:17]}  Qxb2 {[%clk 0:00:10]} 38. Rc1 {[%clk 0:00:12]}  Rxd7 {[%clk 0:00:07]} 39. Qg6 {[%clk 0:00:12]}  Qd2 {[%clk 0:00:06]} 40. Qxf5 {[%clk 0:00:11]}  Rc7 {[%clk 0:00:03]} 41. Qh3+ {[%clk 0:00:09]}  Qh6 {[%clk 0:00:03]} 42. Qe6 {[%clk 0:00:08]}  Rbc8 {[%clk 0:00:03]} 43. Bxa6 {[%clk 0:00:06]}  Rxc3 {[%clk 0:00:02]} 44. Bxc8 {[%clk 0:00:04]}  Rxc1 {[%clk 0:00:02]} 45. Qf5 {[%clk 0:00:04]}  Rxf1+ {[%clk 0:00:02]} 46. Qxf1 {[%clk 0:00:04]}  Qd2 {[%clk 0:00:03]} 47. Bg4 {[%clk 0:00:04]}  Nxg4 {[%clk 0:00:02]} 48. h3 {[%clk 0:00:03]}  Nf2+ {[%clk 0:00:03]} 49. Kg1 {[%clk 0:00:03]}  e3 {[%clk 0:00:03]} 50. Kh2 {[%clk 0:00:03]}  Be5+ {[%clk 0:00:03]} 51. g3 {[%clk 0:00:03]}  Ng4+ {[%clk 0:00:03]} 0-1


[Site "https://www.chess.com"]

[Event "Titled Tuesday Blitz May 31 Early 2022"]
[White "Koellner, Ruben Gideon"]
[Black "Skliarov, Viktor"]
[WhiteFideId "12993093"]
[BlackFideId "14106736"]
[WhiteElo "2555"]
[BlackElo "2229"]
[Result "0-1"]
[Round "06"]
[TimeControl "180+1"]
[Date "2022.06.01"]
[WhiteClock "0:00:07"]
[BlackClock "0:00:23"]

1. d4 {[%clk 0:03:00]}  Nf6 {[%clk 0:02:59]} 2. Bg5 {[%clk 0:03:00]}  Ne4 {[%clk 0:02:59]} 3. Bf4 {[%clk 0:02:58]}  c5 {[%clk 0:02:59]} 4. f3 {[%clk 0:02:57]}  Qa5+ {[%clk 0:02:59]} 5. c3 {[%clk 0:02:57]}  Nf6 {[%clk 0:02:58]} 6. d5 {[%clk 0:02:57]}  Qb6 {[%clk 0:02:56]} 7. Bc1 {[%clk 0:02:57]}  e6 {[%clk 0:02:42]} 8. e4 {[%clk 0:02:52]}  exd5 {[%clk 0:02:42]} 9. exd5 {[%clk 0:02:53]}  d6 {[%clk 0:02:40]} 10. c4 {[%clk 0:02:51]}  Be7 {[%clk 0:02:39]} 11. Nc3 {[%clk 0:02:50]}  O-O {[%clk 0:02:39]} 12. Bd3 {[%clk 0:02:46]}  Nbd7 {[%clk 0:02:35]} 13. f4 {[%clk 0:02:32]}  Re8 {[%clk 0:02:22]} 14. Kf2 {[%clk 0:02:23]}  Nf8 {[%clk 0:02:10]} 15. h3 {[%clk 0:02:17]}  a6 {[%clk 0:02:08]} 16. Nf3 {[%clk 0:02:15]}  Bd7 {[%clk 0:02:01]} 17. g4 {[%clk 0:01:59]}  Qc7 {[%clk 0:01:55]} 18. a4 {[%clk 0:01:55]}  b5 {[%clk 0:01:50]} 19. axb5 {[%clk 0:01:53]}  axb5 {[%clk 0:01:50]} 20. Rxa8 {[%clk 0:01:54]}  Rxa8 {[%clk 0:01:51]} 21. cxb5 {[%clk 0:01:26]}  c4 {[%clk 0:01:26]} 22. Bc2 {[%clk 0:01:21]}  Ra1 {[%clk 0:01:06]} 23. Qd4 {[%clk 0:01:10]}  Bd8 {[%clk 0:00:52]} 24. Re1 {[%clk 0:00:56]}  Qb7 {[%clk 0:00:42]} 25. Be3 {[%clk 0:00:56]}  Ra5 {[%clk 0:00:31]} 26. g5 {[%clk 0:00:51]}  Nh5 {[%clk 0:00:28]} 27. Qxc4 {[%clk 0:00:44]}  Bxb5 {[%clk 0:00:27]} 28. Qb4 {[%clk 0:00:32]}  Qa6 {[%clk 0:00:20]} 29. Qe4 {[%clk 0:00:13]}  Bd7 {[%clk 0:00:19]} 30. Bd3 {[%clk 0:00:10]}  Qb7 {[%clk 0:00:19]} 31. Re2 {[%clk 0:00:09]}  Ra1 {[%clk 0:00:18]} 32. Bb1 {[%clk 0:00:05]}  Bxh3 {[%clk 0:00:18]} 33. Nh4 {[%clk 0:00:04]}  Bd7 {[%clk 0:00:17]} 34. Nf5 {[%clk 0:00:04]}  Bxf5 {[%clk 0:00:17]} 35. Qxf5 {[%clk 0:00:05]}  Bb6 {[%clk 0:00:16]} 36. Bxb6 {[%clk 0:00:04]}  Qxb6+ {[%clk 0:00:17]} 37. Kg2 {[%clk 0:00:05]}  Qd8 {[%clk 0:00:17]} 38. Qe4 {[%clk 0:00:04]}  g6 {[%clk 0:00:16]} 39. Bd3 {[%clk 0:00:04]}  Ng7 {[%clk 0:00:17]} 40. Qf3 {[%clk 0:00:03]}  h5 {[%clk 0:00:15]} 41. gxh6 {[%clk 0:00:03]}  Qh4 {[%clk 0:00:15]} 42. Qh3 {[%clk 0:00:02]}  Qxh3+ {[%clk 0:00:15]} 43. Kxh3 {[%clk 0:00:02]}  Nh5 {[%clk 0:00:16]} 44. Kg4 {[%clk 0:00:02]}  Rf1 {[%clk 0:00:16]} 45. Re4 {[%clk 0:00:02]}  Nf6+ {[%clk 0:00:16]} 46. Kg3 {[%clk 0:00:02]}  Nxe4+ {[%clk 0:00:17]} 47. Nxe4 {[%clk 0:00:02]}  Rd1 {[%clk 0:00:17]} 48. Be2 {[%clk 0:00:02]}  Rd4 {[%clk 0:00:16]} 49. Kf3 {[%clk 0:00:02]}  Nd7 {[%clk 0:00:16]} 50. Ke3 {[%clk 0:00:02]}  Rxd5 {[%clk 0:00:16]} 51. Bc4 {[%clk 0:00:02]}  Ra5 {[%clk 0:00:16]} 52. Ng5 {[%clk 0:00:02]}  d5 {[%clk 0:00:14]} 53. Bb3 {[%clk 0:00:02]}  f6 {[%clk 0:00:14]} 54. Nf3 {[%clk 0:00:02]}  Kh7 {[%clk 0:00:14]} 55. Nd4 {[%clk 0:00:02]}  Kxh6 {[%clk 0:00:14]} 56. Nc6 {[%clk 0:00:02]}  Rb5 {[%clk 0:00:14]} 57. Nd4 {[%clk 0:00:02]}  Rb4 {[%clk 0:00:14]} 58. Kd3 {[%clk 0:00:02]}  Nc5+ {[%clk 0:00:15]} 59. Kc3 {[%clk 0:00:02]}  Rxd4 {[%clk 0:00:15]} 60. Kxd4 {[%clk 0:00:03]}  Nxb3+ {[%clk 0:00:15]} 61. Kxd5 {[%clk 0:00:04]}  g5 {[%clk 0:00:15]} 62. fxg5+ {[%clk 0:00:03]}  fxg5 {[%clk 0:00:16]} 63. Kc4 {[%clk 0:00:04]}  Na5+ {[%clk 0:00:16]} 64. Kb5 {[%clk 0:00:04]}  Nb7 {[%clk 0:00:16]} 65. Kc6 {[%clk 0:00:04]}  Nd8+ {[%clk 0:00:16]} 66. Kd7 {[%clk 0:00:04]}  Nf7 {[%clk 0:00:16]} 67. b4 {[%clk 0:00:03]}  Ne5+ {[%clk 0:00:16]} 68. Kd6 {[%clk 0:00:03]}  Nc4+ {[%clk 0:00:16]} 69. Kc5 {[%clk 0:00:03]}  Na3 {[%clk 0:00:17]} 70. b5 {[%clk 0:00:02]}  Nxb5 {[%clk 0:00:17]} 71. Kxb5 {[%clk 0:00:03]}  Kh5 {[%clk 0:00:17]} 72. Kc4 {[%clk 0:00:04]}  Kg4 {[%clk 0:00:18]} 73. Kd3 {[%clk 0:00:05]}  Kf3 {[%clk 0:00:18]} 74. Kd2 {[%clk 0:00:05]}  Kf2 {[%clk 0:00:19]} 75. Kd3 {[%clk 0:00:05]}  g4 {[%clk 0:00:20]} 76. Ke4 {[%clk 0:00:06]}  g3 {[%clk 0:00:21]} 77. Kf4 {[%clk 0:00:06]}  g2 {[%clk 0:00:22]} 78. Kg4 {[%clk 0:00:07]}  g1=Q+ {[%clk 0:00:23]} 79. Kf4 {[%clk 0:00:07]}  Qg3+ {[%clk 0:00:23]} 0-1


[Site "https://www.chess.com"]

[Event "Titled Tuesday Blitz May 31 Early 2022"]
[White "Leiva, Gianmarco"]
[Black "Stepanencu, Nicodim-Cosmin"]
[WhiteFideId "3804399"]
[BlackFideId "1256220"]
[WhiteElo "2323"]
[BlackElo "1945"]
[Result "1-0"]
[Round "06"]
[TimeControl "180+1"]
[Date "2022.05.31"]
[WhiteClock "0:00:08"]
[BlackClock "0:00:07"]

1. Nf3 {[%clk 0:02:59]}  Nf6 {[%clk 0:02:59]} 2. g3 {[%clk 0:02:59]}  d5 {[%clk 0:02:58]} 3. Bg2 {[%clk 0:02:59]}  c6 {[%clk 0:02:58]} 4. c4 {[%clk 0:02:59]}  Bg4 {[%clk 0:02:52]} 5. Ne5 {[%clk 0:02:59]}  Bf5 {[%clk 0:02:52]} 6. O-O {[%clk 0:02:37]}  e6 {[%clk 0:02:49]} 7. cxd5 {[%clk 0:02:35]}  cxd5 {[%clk 0:02:47]} 8. Nc3 {[%clk 0:02:31]}  Bd6 {[%clk 0:02:43]} 9. Qa4+ {[%clk 0:02:24]}  Nbd7 {[%clk 0:02:43]} 10. Nxd7 {[%clk 0:02:10]}  Qxd7 {[%clk 0:02:44]} 11. Qxd7+ {[%clk 0:02:09]}  Kxd7 {[%clk 0:02:41]} 12. d3 {[%clk 0:02:08]}  Bg6 {[%clk 0:02:40]} 13. Nb5 {[%clk 0:02:00]}  Bc5 {[%clk 0:02:36]} 14. Bf4 {[%clk 0:01:55]}  a6 {[%clk 0:02:32]} 15. Rfc1 {[%clk 0:01:55]}  Rac8 {[%clk 0:02:21]} 16. Nc3 {[%clk 0:01:36]}  Ng4 {[%clk 0:02:06]} 17. Nd1 {[%clk 0:01:30]}  Ba7 {[%clk 0:01:06]} 18. Bf3 {[%clk 0:01:16]}  Nf6 {[%clk 0:00:56]} 19. Be5 {[%clk 0:01:16]}  Rxc1 {[%clk 0:00:55]} 20. Rxc1 {[%clk 0:01:16]}  Rc8 {[%clk 0:00:56]} 21. Rxc8 {[%clk 0:01:15]}  Kxc8 {[%clk 0:00:57]} 22. h4 {[%clk 0:01:10]}  h5 {[%clk 0:00:46]} 23. Bxf6 {[%clk 0:00:41]}  gxf6 {[%clk 0:00:47]} 24. Kf1 {[%clk 0:00:41]}  Kd7 {[%clk 0:00:43]} 25. Ke1 {[%clk 0:00:41]}  Kd6 {[%clk 0:00:43]} 26. Kd2 {[%clk 0:00:42]}  f5 {[%clk 0:00:31]} 27. e3 {[%clk 0:00:36]}  d4 {[%clk 0:00:30]} 28. Bxb7 {[%clk 0:00:33]}  dxe3+ {[%clk 0:00:29]} 29. Nxe3 {[%clk 0:00:32]}  a5 {[%clk 0:00:17]} 30. Bf3 {[%clk 0:00:30]}  Kc5 {[%clk 0:00:05]} 31. Nc4 {[%clk 0:00:29]}  Kb4 {[%clk 0:00:03]} 32. Ne3 {[%clk 0:00:23]}  Bd4 {[%clk 0:00:02]} 33. Kc2 {[%clk 0:00:14]}  Bb6 {[%clk 0:00:01]} 34. Bc6 {[%clk 0:00:08]}  Ba7 {[%clk 0:00:02]} 35. Be8 {[%clk 0:00:08]}  Kc5 {[%clk 0:00:02]} 36. Kd2 {[%clk 0:00:07]}  Kd6 {[%clk 0:00:02]} 37. Ke2 {[%clk 0:00:06]}  Bd4 {[%clk 0:00:02]} 38. f4 {[%clk 0:00:04]}  Bxb2 {[%clk 0:00:01]} 39. Nc4+ {[%clk 0:00:04]}  Kc5 {[%clk 0:00:02]} 40. Nxb2 {[%clk 0:00:04]}  Kb4 {[%clk 0:00:03]} 41. Nc4 {[%clk 0:00:05]}  a4 {[%clk 0:00:04]} 42. Ke3 {[%clk 0:00:04]}  a3 {[%clk 0:00:02]} 43. Kd4 {[%clk 0:00:04]}  f6 {[%clk 0:00:02]} 44. Bxg6 {[%clk 0:00:04]}  e5+ {[%clk 0:00:03]} 45. fxe5 {[%clk 0:00:05]}  fxe5+ {[%clk 0:00:03]} 46. Kxe5 {[%clk 0:00:05]}  Kc3 {[%clk 0:00:04]} 47. Nxa3 {[%clk 0:00:06]}  Kxd3 {[%clk 0:00:05]} 48. Kxf5 {[%clk 0:00:06]}  Ke3 {[%clk 0:00:06]} 49. Kg5 {[%clk 0:00:07]}  Kf3 {[%clk 0:00:07]} 50. Kxh5 {[%clk 0:00:07]}  Kxg3 {[%clk 0:00:07]} 51. Kg5 {[%clk 0:00:08]} 1-0


[Site "https://www.chess.com"]

[Event "Titled Tuesday Blitz May 31 Early 2022"]
[White "Lianes Garcia, Marcos"]
[Black "Durarbayli, Vasif"]
[WhiteFideId "32060777"]
[BlackFideId "13402935"]
[WhiteElo "2310"]
[BlackElo "2528"]
[Result "0-1"]
[Round "06"]
[TimeControl "180+1"]
[Date "2022.05.31"]
[WhiteClock "0:00:03"]
[BlackClock "0:00:22"]

1. e4 {[%clk 0:03:00]}  e5 {[%clk 0:02:59]} 2. g3 {[%clk 0:03:01]}  Nf6 {[%clk 0:02:54]} 3. Bg2 {[%clk 0:03:01]}  Bc5 {[%clk 0:02:54]} 4. Ne2 {[%clk 0:03:01]}  O-O {[%clk 0:02:54]} 5. O-O {[%clk 0:02:58]}  Re8 {[%clk 0:02:53]} 6. c3 {[%clk 0:02:58]}  Bb6 {[%clk 0:02:51]} 7. h3 {[%clk 0:02:50]}  c6 {[%clk 0:02:47]} 8. Kh2 {[%clk 0:02:45]}  d5 {[%clk 0:02:47]} 9. exd5 {[%clk 0:02:46]}  cxd5 {[%clk 0:02:33]} 10. d4 {[%clk 0:02:46]}  Nc6 {[%clk 0:02:32]} 11. Be3 {[%clk 0:02:39]}  e4 {[%clk 0:02:16]} 12. c4 {[%clk 0:02:31]}  dxc4 {[%clk 0:02:15]} 13. Nbc3 {[%clk 0:02:31]}  Bf5 {[%clk 0:02:12]} 14. Qa4 {[%clk 0:02:00]}  Rc8 {[%clk 0:02:12]} 15. Rad1 {[%clk 0:01:41]}  Qd7 {[%clk 0:02:03]} 16. Bg5 {[%clk 0:01:23]}  Nd5 {[%clk 0:01:47]} 17. Nxd5 {[%clk 0:01:23]}  Qxd5 {[%clk 0:01:48]} 18. Nc3 {[%clk 0:01:23]}  Qa5 {[%clk 0:01:47]} 19. d5 {[%clk 0:01:07]}  Nb4 {[%clk 0:01:25]} 20. Qxa5 {[%clk 0:01:00]}  Bxa5 {[%clk 0:01:26]} 21. d6 {[%clk 0:01:01]}  Nd3 {[%clk 0:01:16]} 22. Nd5 {[%clk 0:00:52]}  f6 {[%clk 0:01:12]} 23. Be3 {[%clk 0:00:43]}  Kf7 {[%clk 0:01:03]} 24. Ne7 {[%clk 0:00:35]}  Rxe7 {[%clk 0:01:02]} 25. dxe7 {[%clk 0:00:36]}  a6 {[%clk 0:00:54]} 26. Bd4 {[%clk 0:00:33]}  Re8 {[%clk 0:00:50]} 27. Bc3 {[%clk 0:00:33]}  Bb6 {[%clk 0:00:45]} 28. Rd2 {[%clk 0:00:29]}  Rxe7 {[%clk 0:00:45]} 29. Re2 {[%clk 0:00:30]}  h5 {[%clk 0:00:44]} 30. a3 {[%clk 0:00:25]}  g5 {[%clk 0:00:44]} 31. Bh1 {[%clk 0:00:21]}  g4 {[%clk 0:00:44]} 32. h4 {[%clk 0:00:19]}  Re6 {[%clk 0:00:42]} 33. Bg2 {[%clk 0:00:18]}  Bc5 {[%clk 0:00:42]} 34. Bh1 {[%clk 0:00:09]}  b5 {[%clk 0:00:42]} 35. Bg2 {[%clk 0:00:09]}  Bb6 {[%clk 0:00:42]} 36. Kg1 {[%clk 0:00:04]}  a5 {[%clk 0:00:42]} 37. Bd2 {[%clk 0:00:04]}  Bd4 {[%clk 0:00:30]} 38. Rb1 {[%clk 0:00:03]}  b4 {[%clk 0:00:28]} 39. Be3 {[%clk 0:00:03]}  Be5 {[%clk 0:00:28]} 40. axb4 {[%clk 0:00:03]}  axb4 {[%clk 0:00:29]} 41. Rc2 {[%clk 0:00:04]}  Rc6 {[%clk 0:00:26]} 42. Bf1 {[%clk 0:00:05]}  Be6 {[%clk 0:00:26]} 43. b3 {[%clk 0:00:04]}  c3 {[%clk 0:00:23]} 44. Be2 {[%clk 0:00:04]}  Ra6 {[%clk 0:00:22]} 45. Kf1 {[%clk 0:00:05]}  Ra3 {[%clk 0:00:22]} 46. Rd1 {[%clk 0:00:03]}  Bxb3 {[%clk 0:00:22]} 0-1


[Site "https://www.chess.com"]

[Event "Titled Tuesday Blitz May 31 Early 2022"]
[White "Livaic, Leon"]
[Black "Zhigalko, Sergei"]
[WhiteFideId "14531534"]
[BlackFideId "13502956"]
[WhiteElo "2540"]
[BlackElo "2662"]
[Result "0-1"]
[Round "06"]
[TimeControl "180+1"]
[Date "2022.05.31"]
[WhiteClock "0:00:04"]
[BlackClock "0:00:06"]

1. d4 {[%clk 0:03:00]}  Nf6 {[%clk 0:03:00]} 2. c4 {[%clk 0:03:01]}  e6 {[%clk 0:02:58]} 3. Nf3 {[%clk 0:03:01]}  b6 {[%clk 0:02:58]} 4. Bf4 {[%clk 0:03:00]}  Bb7 {[%clk 0:02:57]} 5. e3 {[%clk 0:03:01]}  Nh5 {[%clk 0:02:54]} 6. Nc3 {[%clk 0:02:54]}  Nxf4 {[%clk 0:02:51]} 7. exf4 {[%clk 0:02:55]}  g6 {[%clk 0:02:47]} 8. Bd3 {[%clk 0:02:52]}  Bg7 {[%clk 0:02:47]} 9. O-O {[%clk 0:02:40]}  O-O {[%clk 0:02:40]} 10. Qe2 {[%clk 0:02:34]}  Bxf3 {[%clk 0:02:22]} 11. Qxf3 {[%clk 0:02:35]}  Nc6 {[%clk 0:02:22]} 12. d5 {[%clk 0:02:35]}  Nd4 {[%clk 0:02:22]} 13. Qe3 {[%clk 0:02:35]}  Re8 {[%clk 0:02:13]} 14. Qd2 {[%clk 0:02:34]}  c6 {[%clk 0:02:05]} 15. Rfe1 {[%clk 0:02:23]}  Rc8 {[%clk 0:01:56]} 16. Rad1 {[%clk 0:02:20]}  Qc7 {[%clk 0:01:48]} 17. Be4 {[%clk 0:01:58]}  exd5 {[%clk 0:01:09]} 18. cxd5 {[%clk 0:01:58]}  b5 {[%clk 0:01:10]} 19. Qd3 {[%clk 0:01:44]}  Qxf4 {[%clk 0:01:04]} 20. g3 {[%clk 0:01:30]}  Qd6 {[%clk 0:00:50]} 21. Bg2 {[%clk 0:01:27]}  Qb4 {[%clk 0:00:49]} 22. Ne4 {[%clk 0:00:54]}  f5 {[%clk 0:00:33]} 23. Qd2 {[%clk 0:00:27]}  Qxd2 {[%clk 0:00:24]} 24. Nxd2 {[%clk 0:00:27]}  c5 {[%clk 0:00:21]} 25. Rxe8+ {[%clk 0:00:26]}  Rxe8 {[%clk 0:00:21]} 26. b3 {[%clk 0:00:26]}  d6 {[%clk 0:00:18]} 27. Bf1 {[%clk 0:00:23]}  Bh6 {[%clk 0:00:15]} 28. Kg2 {[%clk 0:00:19]}  Bxd2 {[%clk 0:00:15]} 29. Rxd2 {[%clk 0:00:20]}  a5 {[%clk 0:00:14]} 30. Rd1 {[%clk 0:00:16]}  Kg7 {[%clk 0:00:14]} 31. h4 {[%clk 0:00:16]}  Kf6 {[%clk 0:00:14]} 32. Bd3 {[%clk 0:00:13]}  Re5 {[%clk 0:00:11]} 33. f4 {[%clk 0:00:10]}  Re3 {[%clk 0:00:10]} 34. Kf2 {[%clk 0:00:08]}  Rf3+ {[%clk 0:00:09]} 35. Kg2 {[%clk 0:00:09]}  Re3 {[%clk 0:00:09]} 36. Kf2 {[%clk 0:00:09]}  Re7 {[%clk 0:00:10]} 37. Bf1 {[%clk 0:00:09]}  Ra7 {[%clk 0:00:07]} 38. Rb1 {[%clk 0:00:06]}  h6 {[%clk 0:00:06]} 39. a4 {[%clk 0:00:06]}  b4 {[%clk 0:00:04]} 40. Re1 {[%clk 0:00:05]}  Re7 {[%clk 0:00:04]} 41. Rxe7 {[%clk 0:00:04]}  Kxe7 {[%clk 0:00:05]} 42. Bc4 {[%clk 0:00:05]}  Kf6 {[%clk 0:00:05]} 43. Ke3 {[%clk 0:00:05]}  g5 {[%clk 0:00:05]} 44. hxg5+ {[%clk 0:00:04]}  hxg5 {[%clk 0:00:06]} 45. Kf2 {[%clk 0:00:04]}  Kg6 {[%clk 0:00:06]} 46. Be2 {[%clk 0:00:03]}  Nxb3 {[%clk 0:00:04]} 47. g4 {[%clk 0:00:02]}  gxf4 {[%clk 0:00:03]} 48. gxf5+ {[%clk 0:00:03]}  Kxf5 {[%clk 0:00:04]} 49. Kf3 {[%clk 0:00:03]}  Nd4+ {[%clk 0:00:05]} 50. Kf2 {[%clk 0:00:04]}  Nxe2 {[%clk 0:00:06]} 0-1


[Site "https://www.chess.com"]

[Event "Titled Tuesday Blitz May 31 Early 2022"]
[White "Lopez Del Alamo, Antonio"]
[Black "Fantinel, Thibault"]
[WhiteFideId "2227339"]
[BlackFideId "663395"]
[WhiteElo "2089"]
[BlackElo "2349"]
[Result "0-1"]
[Round "06"]
[TimeControl "180+1"]
[Date "2022.06.01"]
[WhiteClock "0:00:03"]
[BlackClock "0:00:06"]

1. e4 {[%clk 0:02:59]}  c5 {[%clk 0:02:59]} 2. Nf3 {[%clk 0:02:59]}  e6 {[%clk 0:03:00]} 3. d3 {[%clk 0:02:59]}  Nc6 {[%clk 0:02:59]} 4. g3 {[%clk 0:02:59]}  g6 {[%clk 0:03:00]} 5. d4 {[%clk 0:02:54]}  cxd4 {[%clk 0:03:01]} 6. Nxd4 {[%clk 0:02:55]}  Bg7 {[%clk 0:02:59]} 7. Be3 {[%clk 0:02:55]}  Nge7 {[%clk 0:02:57]} 8. Nc3 {[%clk 0:02:48]}  O-O {[%clk 0:02:52]} 9. Bg2 {[%clk 0:02:47]}  a6 {[%clk 0:02:51]} 10. O-O {[%clk 0:02:46]}  Ne5 {[%clk 0:02:52]} 11. Qe2 {[%clk 0:02:36]}  Qc7 {[%clk 0:02:50]} 12. Bf4 {[%clk 0:02:28]}  b5 {[%clk 0:02:49]} 13. a3 {[%clk 0:02:25]}  Bb7 {[%clk 0:02:48]} 14. Rad1 {[%clk 0:02:22]}  Rac8 {[%clk 0:02:45]} 15. Nb3 {[%clk 0:01:36]}  Rfd8 {[%clk 0:02:37]} 16. h3 {[%clk 0:01:27]}  Qc4 {[%clk 0:02:06]} 17. Bxe5 {[%clk 0:01:15]}  Qxe2 {[%clk 0:01:52]} 18. Nxe2 {[%clk 0:01:15]}  Bxe5 {[%clk 0:01:53]} 19. c3 {[%clk 0:01:14]}  d5 {[%clk 0:01:18]} 20. f4 {[%clk 0:01:13]}  Bc7 {[%clk 0:01:11]} 21. e5 {[%clk 0:01:09]}  Nf5 {[%clk 0:01:11]} 22. Rd3 {[%clk 0:01:03]}  a5 {[%clk 0:01:07]} 23. g4 {[%clk 0:00:53]}  Bb6+ {[%clk 0:01:06]} 24. Nbd4 {[%clk 0:00:43]}  Nxd4 {[%clk 0:01:06]} 25. Nxd4 {[%clk 0:00:43]}  b4 {[%clk 0:01:05]} 26. axb4 {[%clk 0:00:41]}  axb4 {[%clk 0:01:06]} 27. Ra1 {[%clk 0:00:40]}  bxc3 {[%clk 0:01:01]} 28. bxc3 {[%clk 0:00:40]}  Rxc3 {[%clk 0:01:02]} 29. Rad1 {[%clk 0:00:29]}  Rdc8 {[%clk 0:00:52]} 30. Kh1 {[%clk 0:00:23]}  Rxd3 {[%clk 0:00:50]} 31. Rxd3 {[%clk 0:00:22]}  Rc1+ {[%clk 0:00:50]} 32. Kh2 {[%clk 0:00:22]}  Ba6 {[%clk 0:00:51]} 33. Rd2 {[%clk 0:00:21]}  Bc4 {[%clk 0:00:23]} 34. f5 {[%clk 0:00:20]}  Bc7 {[%clk 0:00:16]} 35. Nf3 {[%clk 0:00:17]}  exf5 {[%clk 0:00:13]} 36. gxf5 {[%clk 0:00:17]}  f6 {[%clk 0:00:14]} 37. fxg6 {[%clk 0:00:16]}  hxg6 {[%clk 0:00:14]} 38. Rb2 {[%clk 0:00:13]}  fxe5 {[%clk 0:00:14]} 39. Rb7 {[%clk 0:00:13]}  Bd6 {[%clk 0:00:11]} 40. Rb6 {[%clk 0:00:12]}  Bc7 {[%clk 0:00:08]} 41. Rb7 {[%clk 0:00:11]}  Be2 {[%clk 0:00:06]} 42. Ng1 {[%clk 0:00:07]}  Ba6 {[%clk 0:00:07]} 43. Bxd5+ {[%clk 0:00:06]}  Kg7 {[%clk 0:00:07]} 44. Rxc7+ {[%clk 0:00:06]}  Rxc7 {[%clk 0:00:06]} 45. Nf3 {[%clk 0:00:07]}  Bb7 {[%clk 0:00:06]} 46. Bxb7 {[%clk 0:00:07]}  Rxb7 {[%clk 0:00:06]} 47. Nxe5 {[%clk 0:00:07]}  Kf6 {[%clk 0:00:07]} 48. Ng4+ {[%clk 0:00:07]}  Kg5 {[%clk 0:00:07]} 49. Nf2 {[%clk 0:00:07]}  Kf4 {[%clk 0:00:07]} 50. Kg2 {[%clk 0:00:07]}  Rb2 {[%clk 0:00:08]} 51. h4 {[%clk 0:00:03]}  Ra2 {[%clk 0:00:07]} 52. Kg1 {[%clk 0:00:03]}  Kg3 {[%clk 0:00:07]} 53. Ne4+ {[%clk 0:00:03]}  Kxh4 {[%clk 0:00:08]} 54. Nf2 {[%clk 0:00:03]}  g5 {[%clk 0:00:07]} 55. Kh1 {[%clk 0:00:02]}  Rxf2 {[%clk 0:00:06]} 56. Kg1 {[%clk 0:00:03]}  Ra2 {[%clk 0:00:06]} 0-1


[Site "https://www.chess.com"]